bitfinex/quotes_SOLUSD_20250728
["timestamp","ask_amount","ask_price","bid_price","bid_amount"]
[1753668561108,0.03,188.38,188.37,9.87178984]
[1753668561522,0.03,188.38,188.37,10.81611298]
[1753668562336,0.03,188.38,188.37,5.30870096]
[1753668562515,0.03,188.38,188.37,9.87178984]
[1753668563032,0.03,188.38,188.37,10.81611298]
[1753668563333,0.03,188.38,188.37,10.15611298]
[1753668563515,0.03,188.38,188.37,9.87178984]
[1753668564324,0.74,188.38,188.34,47.33255496]
[1753668564512,0.03,188.38,188.34,47.33255496]
[1753668564702,0.71,188.37,188.34,47.33255496]
[1753668565107,0.03,188.38,188.36,4.56308888]
[1753668565410,0.71,188.38,188.36,4.56308888]
[1753668566432,0.03,188.38,188.36,10.57200321]
[1753668566625,26.03,188.38,188.37,4.56308888]
[1753668566823,0.03,188.38,188.37,5.26308888]
[1753668567139,0.03,188.38,188.37,5.54741202]
[1753668567511,0.03,188.38,188.36,5.30891433]
[1753668567734,0.03,188.38,188.36,4.56308888]
[1753668567917,0.03,188.38,188.37,4.56308888]
[1753668568539,0.03,188.38,188.36,6.00887399]
[1753668568841,0.68,188.37,188.34,4.56308888]
[1753668569224,0.03,188.38,188.36,4.56308888]
[1753668569410,0.03,188.38,188.37,4.84741202]
[1753668569612,0.03,188.38,188.37,5.54741202]
[1753668570246,0.03,188.38,188.37,4.56308888]
[1753668570421,0.71,188.38,188.35,4.84741202]
[1753668570735,0.71,188.38,188.35,10.15663468]
[1753668571440,0.71,188.38,188.35,9.87231154]
[1753668574837,0.03,188.38,188.37,4.56308888]
[1753668575044,0.03,188.38,188.37,5.26308888]
[1753668575430,0.03,188.38,188.37,4.56308888]
[1753668575631,26.03,188.38,188.34,5.26308888]
[1753668575935,0.03,188.38,188.37,4.56308888]
[1753668576139,0.03,188.38,188.37,5.54741202]
[1753668576717,0.03,188.38,188.37,28.47888487]
[1753668576923,0.03,188.38,188.37,33.78758583]
[1753668578047,0.03,188.39,188.38,21.63209599]
[1753668578350,0.03,188.39,188.38,22.8629379]
[1753668578956,0.03,188.39,188.38,28.17135705]
[1753668580232,0.03,188.42,188.38,41.44240493]
[1753668580554,0.03,188.42,188.41,21.63209599]
[1753668580753,0.03,188.42,188.41,59.60285338]
[1753668581092,0.03,188.42,188.41,0.53075739]
[1753668581245,0.71,188.42,188.4,37.44]
[1753668581556,0.68,188.41,188.4,37.44]
[1753668582633,0.68,188.41,188.39,9.87115881]
[1753668582832,0.68,188.41,188.39,47.31115881]
[1753668585076,0.03,188.42,188.4,4.56308888]
[1753668585266,0.03,188.42,188.41,4.56308888]
[1753668586463,0.03,188.42,188.41,6.07816941]
[1753668587260,0.03,188.42,188.41,28.17042728]
[1753668592982,0.03,188.42,188.41,10.68574331]
[1753668593274,0.03,188.42,188.41,47.59498592]
[1753668593785,0.03,188.42,188.41,47.45282435]
[1753668593985,0.03,188.42,188.41,47.59498592]
[1753668595191,0.1,188.44,188.42,17.06900711]
[1753668595392,0.1,188.44,188.43,59.60279704]
[1753668595752,0.1,188.44,188.43,60.29279704]
[1753668596187,0.03,188.45,188.44,17.06900711]
[1753668596362,0.03,188.45,188.44,10.15414095]
[1753668596681,0.03,188.45,188.44,47.59414095]
[1753668600862,0.03,188.46,188.44,65.06882492]
[1753668601088,0.03,188.46,188.45,27.4158296]
[1753668601388,0.03,188.49,188.48,17.06900711]
[1753668601690,0.03,188.49,188.48,64.88825897]
[1753668602494,0.03,188.49,188.48,10.683575]
[1753668602686,0.7,188.49,188.48,47.57301473]
[1753668602985,0.03,188.49,188.48,47.57301473]
[1753668604889,0.7,188.49,188.48,47.57301473]
[1753668605393,0.03,188.49,188.48,47.57301473]
[1753668606468,0.03,188.49,188.48,65.0476987]
[1753668608888,1e-08,188.49,188.48,65.0476987]
[1753668609183,0.03,188.52,188.49,17.06900711]
[1753668609388,0.03,188.52,188.51,21.63209599]
[1753668609771,0.03,188.53,188.52,0.28432314]
[1753668609973,0.03,188.53,188.52,38.92477083]
[1753668610174,0.03,188.53,188.52,43.48785971]
[1753668610502,0.03,188.56,188.54,0.28432314]
[1753668610681,0.03,188.56,188.55,64.14554816]
[1753668611288,0.03,188.56,188.55,64.83554816]
[1753668612361,0.03,188.56,188.55,70.13918114]
[1753668612978,0.1,188.57,188.56,17.06900711]
[1753668613162,0.03,188.6,188.59,21.63209599]
[1753668613361,0.03,188.6,188.59,59.05209599]
[1753668614169,0.03,188.6,188.59,4.84741202]
[1753668614372,0.03,188.6,188.59,42.24741202]
[1753668614807,0.03,188.6,188.59,47.5499201]
[1753668615206,0.7,188.6,188.59,42.24741202]
[1753668615399,0.7,188.6,188.59,47.5499201]
[1753668615801,0.03,188.6,188.59,42.24741202]
[1753668616008,0.03,188.6,188.59,64.33460407]
[1753668616192,0.03,188.6,188.59,64.86485487]
[1753668616392,0.7,188.6,188.59,47.5499201]
[1753668619225,0.03,188.6,188.59,48.0801709]
[1753668619396,0.03,188.6,188.59,65.55485487]
[1753668621209,0.67,188.66,188.62,26.0]
[1753668621415,1.6194,188.68,188.65,4.56308888]
[1753668621714,0.77,188.68,188.67,4.84741202]
[1753668622010,0.1,188.68,188.67,42.24741202]
[1753668622618,0.77,188.68,188.67,42.24741202]
[1753668622815,0.77,188.68,188.67,41.96308888]
[1753668622985,0.77,188.68,188.67,4.56308888]
[1753668623191,0.77,188.68,188.67,37.38]
[1753668625834,0.77,188.68,188.66,37.38]
[1753668626161,0.1,188.68,188.66,37.38]
[1753668626286,0.77,188.68,188.66,41.94308888]
[1753668626699,0.67,188.67,188.66,41.94308888]
[1753668627192,0.1,188.68,188.67,5.58458285]
[1753668627503,0.1,188.68,188.67,10.14767173]
[1753668627713,0.1,188.68,188.67,10.6776977]
[1753668627911,0.1,188.68,188.67,11.3376977]
[1753668629492,0.1,188.68,188.67,28.12238167]
[1753668630131,0.1,188.68,188.67,27.46238167]
[1753668630908,0.1,188.68,188.67,26.9323557]
[1753668631102,0.1,188.68,188.67,10.14767173]
[1753668631800,0.1,188.68,188.67,47.52767173]
[1753668632703,0.1,188.68,188.67,48.18767173]
[1753668633828,0.1,188.68,188.67,47.52767173]
[1753668634539,0.1,188.68,188.67,48.18767173]
[1753668634710,0.1,188.68,188.67,47.52767173]
[1753668635101,0.1,188.68,188.67,64.9723557]
[1753668636027,0.1,188.68,188.67,64.3123557]
[1753668636835,0.1,188.68,188.67,64.9723557]
[1753668638918,0.1,188.68,188.67,64.3123557]
[1753668641413,0.1,188.68,188.67,64.9723557]
[1753668642837,1e-08,188.68,188.67,64.9723557]
[1753668643042,0.03,188.72,188.69,0.28432314]
[1753668643347,0.03,188.72,188.71,21.63209599]
[1753668643934,0.03,188.72,188.71,22.29209599]
[1753668644311,0.03,188.72,188.71,27.59123223]
[1753668644508,0.03,188.72,188.71,26.93123223]
[1753668644920,0.03,188.72,188.71,27.59123223]
[1753668645225,0.67,188.78,188.72,0.28432314]
[1753668645429,0.67,188.78,188.77,4.56308888]
[1753668645630,0.67,188.78,188.77,41.92308888]
[1753668646553,7.8166,188.82,188.77,47.2205408]
[1753668646717,0.67,188.8,188.77,42.94177506]
[1753668646918,0.67,188.8,188.79,4.84741202]
[1753668647118,0.67,188.8,188.79,42.20741202]
[1753668647728,1.6467,188.82,188.79,42.20741202]
[1753668647729,1.6467,188.82,188.8,0.28432314]
[1753668647937,0.67,188.83,188.82,0.28432314]
[1753668648252,0.67,188.86,188.82,21.63209599]
[1753668648547,8.3182,188.87,188.85,0.28432314]
[1753668648851,8.3182,188.87,188.86,37.36]
[1753668649042,8.9882,188.87,188.86,37.36]
[1753668650041,8.9882,188.87,188.85,37.34]
[1753668650245,0.67,188.86,188.85,37.34]
[1753668651547,0.67,188.86,188.8,0.52966101]
[1753668651848,0.67,188.86,188.82,4.84741202]
[1753668652047,0.67,188.86,188.82,0.28432314]
[1753668652234,5.23308888,188.86,188.83,37.34]
[1753668652432,26.0,188.83,188.75,16.78468397]
[1753668652643,4.56308888,188.81,188.76,37.34]
[1753668652946,0.67,188.82,188.75,37.34]
[1753668652947,4.56308888,188.77,188.75,37.34]
[1753668653128,0.67,188.76,188.75,37.34]
[1753668653741,5.23308888,188.76,188.73,37.34]
[1753668653948,1.5785,188.79,188.73,37.34]
[1753668654119,0.67,188.76,188.73,37.34]
[1753668654317,0.67,188.75,188.73,37.34]
[1753668654752,4.56308888,188.78,188.73,42.63852167]
[1753668654953,0.72,188.77,188.73,42.63852167]
[1753668655255,0.72,188.76,188.73,42.63852167]
[1753668656531,5.28308888,188.78,188.73,42.63852167]
[1753668656746,0.72,188.77,188.73,42.63852167]
[1753668657125,0.72,188.77,188.74,4.84741202]
[1753668657353,28.2985,188.79,188.75,37.34]
[1753668657546,0.53078556,188.83,188.77,4.56308888]
[1753668657547,5.82662295,188.83,188.77,4.56308888]
[1753668657750,5.28308888,188.82,188.77,41.90308888]
[1753668657944,0.72,188.81,188.77,47.20031376]
[1753668658145,0.72,188.8,188.77,37.34]
[1753668658361,0.72,188.79,188.77,37.34]
[1753668658656,0.72,188.78,188.77,37.34]
[1753668660031,5.28308888,188.8,188.77,37.34]
[1753668660234,0.72,188.8,188.77,42.63739979]
[1753668660451,0.72,188.82,188.78,0.28432314]
[1753668660737,0.72,188.86,188.81,4.84741202]
[1753668661068,0.72,188.85,188.82,37.34]
[1753668661247,0.72,188.84,188.82,37.34]
[1753668661441,0.72,188.86,188.83,0.28432314]
[1753668661641,0.72,188.86,188.83,4.84741202]
[1753668661839,0.1,188.87,188.83,4.84741202]
[1753668662039,0.72,188.86,188.83,0.28432314]
[1753668662337,4.56308888,188.84,188.8,37.34]
[1753668662539,4.56308888,188.81,188.8,37.34]
[1753668662742,5.28308888,188.81,188.8,37.34]
[1753668662942,0.72,188.81,188.8,37.34]
[1753668664754,5.28308888,188.83,188.8,37.34]
[1753668665063,0.1,188.87,188.82,4.56308888]
[1753668665263,0.1,188.87,188.84,4.56308888]
[1753668665463,0.1,188.87,188.83,38.0]
[1753668665647,0.82,188.87,188.83,41.90308888]
[1753668665844,0.72,188.86,188.83,37.34]
[1753668666244,0.72,188.85,188.83,37.34]
[1753668666463,0.72,188.84,188.83,37.34]
[1753668666641,0.72,188.84,188.8,4.56308888]
[1753668666846,0.72,188.83,188.8,37.34]
[1753668667563,0.72,188.82,188.8,37.34]
[1753668668542,0.72,188.84,188.8,37.34]
[1753668668752,146.3,188.86,188.81,5.50741202]
[1753668668951,146.3,188.86,188.84,0.28432314]
[1753668669151,0.1,188.87,188.85,4.84741202]
[1753668669671,0.1,188.87,188.85,5.50741202]
[1753668670043,0.1,188.87,188.85,0.94432314]
[1753668670370,0.1,188.87,188.85,0.28432314]
[1753668671567,0.1,188.87,188.85,5.57952039]
[1753668671867,0.03,188.86,188.85,10.14260927]
[1753668672164,0.03,188.86,188.85,10.67213005]
[1753668672342,0.03,188.86,188.85,11.33213005]
[1753668679452,0.03,188.86,188.85,28.11681402]
[1753668682058,0.03,188.86,188.85,27.45681402]
[1753668682969,0.03,188.86,188.85,5.9668796]
[1753668683260,0.03,188.86,188.85,27.97465245]
[1753668683482,0.03,188.86,188.85,28.11681402]
[1753668683664,0.03,188.86,188.85,27.45681402]
[1753668684877,0.03,188.86,188.85,28.17681402]
[1753668685287,0.75,188.9,188.85,28.17681402]
[1753668685288,0.03,188.9,188.85,28.17681402]
[1753668685587,1.5073,188.98,188.85,28.17681402]
[1753668685588,1.5073,188.98,188.9,0.28432314]
[1753668685760,6.7502,189.0,188.96,4.56308888]
[1753668685961,0.66,188.99,188.97,37.52]
[1753668686282,0.66,188.98,188.97,42.81181167]
[1753668686483,0.66,188.98,188.97,37.52]
[1753668686982,0.66,188.98,188.94,4.56308888]
[1753668687158,0.66,188.98,188.95,37.52]
[1753668687358,4.56308888,188.97,188.95,37.52]
[1753668687564,0.66,188.96,188.95,37.52]
[1753668687980,5.22308888,188.96,188.93,0.28432314]
[1753668688184,5.22308888,188.96,188.88,26.0]
[1753668688185,4.56308888,188.94,188.92,37.52]
[1753668688368,0.66,188.93,188.92,37.52]
[1753668688775,5.22308888,188.93,188.9,37.52]
[1753668688991,0.66,188.92,188.9,37.52]
[1753668689564,0.66,188.91,188.9,37.52]
[1753668689764,0.66,188.91,188.83,13.95894814]
[1753668689765,5.22308888,188.91,188.86,4.56308888]
[1753668689962,0.66,188.9,188.88,0.14216157]
[1753668690171,0.66,188.89,188.88,0.14216157]
[1753668690364,0.66,188.89,188.88,0.28432314]
[1753668690572,5.22308888,188.89,188.87,37.52]
[1753668690800,0.66,188.88,188.87,37.52]
[1753668691681,10.51752619,188.88,188.85,37.52]
[1753668691915,4.56308888,188.86,188.79,4.56308888]
[1753668692210,5.29443731,188.88,188.79,4.56308888]
[1753668692211,0.66,188.85,188.81,0.28432314]
[1753668692370,5.22308888,188.84,188.81,0.28432314]
[1753668692571,4.56308888,188.82,188.77,5.29739007]
[1753668692798,5.22308888,188.81,188.78,37.56]
[1753668692972,5.22308888,188.81,188.79,0.28432314]
[1753668693169,0.66,188.81,188.78,37.56]
[1753668693675,1.5435,188.85,188.79,0.28432314]
[1753668693986,4.56308888,188.83,188.79,6.01676631]
[1753668694194,4.56308888,188.84,188.8,0.28432314]
[1753668694502,0.66,188.86,188.82,0.28432314]
[1753668694503,5.22308888,188.86,188.82,0.28432314]
[1753668694677,0.66,188.86,188.82,0.28432314]
[1753668695002,4.56308888,188.87,188.82,0.28432314]
[1753668695400,5.22308888,188.87,188.82,0.28432314]
[1753668695700,1.5435,188.89,188.86,5.29492745]
[1753668695902,5.22308888,188.9,188.86,42.85492745]
[1753668696792,7.12358556,188.92,188.87,7.69110046]
[1753668696793,14.65957732,188.92,188.87,7.69110046]
[1753668696993,7.40677732,188.9,188.86,37.56]
[1753668697305,0.66,188.89,188.86,37.56]
[1753668697502,0.66,188.88,188.86,37.56]
[1753668697893,8.06677732,188.87,188.8,5.29661016]
[1753668698098,7.40677732,188.84,188.81,37.58]
[1753668698404,8.06677732,188.87,188.82,0.28432314]
[1753668698716,8.06677732,188.87,188.82,0.14216157]
[1753668699016,8.06677732,188.87,188.82,0.28432314]
[1753668699715,8.06677732,188.87,188.82,7.69110046]
[1753668700103,8.06677732,188.9,188.85,7.69110046]
[1753668700814,0.53078556,188.93,188.88,0.14216157]
[1753668701006,0.66,188.93,188.89,37.58]
[1753668701320,1.5435,188.94,188.89,37.58]
[1753668701321,0.66,188.92,188.89,37.58]
[1753668701617,0.66,188.91,188.89,37.58]
[1753668701785,0.66,188.9,188.89,37.58]
[1753668701985,8.06677732,188.9,188.86,37.6]
[1753668702205,0.66,188.89,188.86,42.89491994]
[1753668702404,0.66,188.92,188.88,7.40677732]
[1753668702990,7.40677732,188.93,188.88,7.40677732]
[1753668703307,0.66,188.91,188.87,7.69110046]
[1753668704018,2.07428556,188.94,188.87,12.98548213]
[1753668704208,2.2035,188.94,188.89,7.69110046]
[1753668704721,0.66,188.93,188.89,7.69110046]
[1753668705597,0.03,188.92,188.89,7.69110046]
[1753668705824,0.03,188.92,188.91,7.69110046]
[1753668706011,0.03,188.92,188.91,12.98462647]
[1753668706316,0.03,188.92,188.91,5.57784915]
[1753668707832,0.03,188.92,188.91,6.29784915]
[1753668708120,0.03,188.92,188.91,13.70462647]
[1753668708924,0.03,188.92,188.91,12.98462647]
[1753668709521,0.03,188.92,188.91,0.28432314]
[1753668709719,0.03,188.92,188.9,42.89373146]
[1753668709720,0.03,188.92,188.9,37.6]
[1753668709925,0.03,188.92,188.9,42.89380385]
[1753668710225,0.03,188.92,188.9,43.61380385]
[1753668710427,0.03,188.92,188.9,42.89380385]
[1753668711024,0.66,188.91,188.9,37.6]
[1753668711212,0.69,188.92,188.9,37.6]
[1753668711727,8.06677732,188.91,188.89,37.58]
[1753668712027,0.66,188.9,188.88,0.28432314]
[1753668712211,7.40677732,188.91,188.88,0.28432314]
[1753668712522,0.66,188.89,188.88,0.28432314]
[1753668712723,0.69,188.92,188.88,5.57868993]
[1753668712920,0.66,188.91,188.88,5.57868993]
[1753668713231,1.19078556,188.9,188.83,5.29576868]
[1753668713404,8.06677732,188.89,188.85,37.56]
[1753668713610,2.11808556,188.91,188.86,8.12677732]
[1753668713825,1.5873,188.91,188.87,1.00432314]
[1753668714027,26.0,188.91,188.87,8.41110046]
[1753668714329,8.06677732,188.91,188.88,37.58]
[1753668714521,7.40677732,188.89,188.87,0.28432314]
[1753668714720,0.66,188.89,188.87,5.57888017]
[1753668714913,7.40677732,188.91,188.87,5.57888017]
[1753668715100,8.12677732,188.91,188.87,5.57888017]
[1753668715421,7.43677732,188.92,188.87,6.28888017]
[1753668715606,8.12677732,188.91,188.87,5.57888017]
[1753668716903,5.26531035,188.91,188.87,5.57888017]
[1753668717100,5.26531035,188.9,188.86,37.58]
[1753668717410,5.26531035,188.89,188.86,37.58]
[1753668717619,5.26531035,188.89,188.84,4.60531035]
[1753668717620,4.54531035,188.87,188.84,5.355456]
[1753668717813,0.72,188.86,188.84,5.355456]
[1753668718011,5.26531035,188.86,188.84,0.06]
[1753668718616,0.72,188.86,188.84,0.06]
[1753668718818,0.72,188.85,188.84,0.06]
[1753668719737,5.26531035,188.85,188.84,0.06]
[1753668720233,11.09130374,188.85,188.84,0.06]
[1753668721131,37.09130374,188.85,188.84,0.06]
[1753668722103,11.09130374,188.85,188.84,0.06]
[1753668722905,65.45598771,188.85,188.84,1e-08]
[1753668723130,6.2222,188.81,188.8,0.06]
[1753668723327,37.29829591,188.81,188.8,0.06]
[1753668723532,12.01829591,188.81,188.8,0.06]
[1753668723824,17.31462555,188.81,188.8,0.06]
[1753668725208,34.09930952,188.81,188.8,0.06]
[1753668725726,1.5068,188.76,188.68,5.35993685]
[1753668725904,4.54531035,188.71,188.68,5.35993685]
[1753668726101,4.54531035,188.71,188.69,0.28432314]
[1753668726311,4.54531035,188.71,188.68,0.06]
[1753668726514,4.54531035,188.7,188.68,0.06]
[1753668727028,4.54531035,188.69,188.68,0.06]
[1753668727329,0.53078556,188.72,188.68,0.77]
[1753668727628,4.54531035,188.72,188.69,0.71]
[1753668728128,4.54531035,188.72,188.68,5.35983201]
[1753668729111,1.25078556,188.74,188.68,5.35983201]
[1753668729414,4.54531035,188.72,188.68,5.35983201]
[1753668730320,4.54531035,188.72,188.68,0.06]
[1753668731115,39.0868,188.76,188.68,0.06]
[1753668731116,1.5068,188.76,188.7,4.82963349]
[1753668731334,0.72,188.77,188.72,4.54531035]
[1753668731335,30.54531035,188.77,188.72,4.54531035]
[1753668731535,26.0,188.77,188.73,5.39747192]
[1753668731839,42.12531035,188.81,188.76,4.54531035]
[1753668732022,4.54531035,188.81,188.77,0.71]
[1753668732222,4.54531035,188.82,188.79,5.29689072]
[1753668732819,27.25078556,188.83,188.79,5.29689072]
[1753668732820,34.6649025,188.83,188.79,5.29689072]
[1753668733018,7.41411694,188.83,188.79,6.00689072]
[1753668733210,7.9449025,188.84,188.79,6.00689072]
[1753668733606,8.6649025,188.84,188.79,6.00689072]
[1753668733838,8.6649025,188.84,188.78,7.41411694]
[1753668733839,8.13411694,188.83,188.78,0.28432314]
[1753668734208,7.41411694,188.8,188.75,5.29801324]
[1753668734433,7.41411694,188.78,188.74,5.29824299]
[1753668735038,7.41411694,188.78,188.74,6.00824299]
[1753668735347,7.9449025,188.79,188.74,5.29824299]
[1753668735513,7.41411694,188.79,188.75,0.71]
[1753668735711,8.13411694,188.79,188.74,12.71235993]
[1753668736432,8.13411694,188.79,188.74,13.42235993]
[1753668737240,8.13411694,188.78,188.74,5.29824299]
[1753668739154,7.41411694,188.78,188.72,50.33274674]
[1753668739436,8.6649025,188.77,188.72,42.9186298]
[1753668739827,8.6649025,188.77,188.72,43.6286298]
[1753668740716,7.41411694,188.78,188.73,0.71]
[1753668740930,1.25078556,188.77,188.73,0.71]
[1753668741440,7.41411694,188.78,188.73,0.71]
[1753668741637,7.9449025,188.78,188.73,0.71]
[1753668741939,8.13411694,188.77,188.72,42.9186298]
[1753668742150,0.53078556,188.76,188.72,43.6286298]
[1753668742350,1.25078556,188.76,188.72,42.9186298]
[1753668742821,0.72,188.76,188.72,42.9186298]
[1753668743019,7.41411694,188.77,188.72,43.6286298]
[1753668743327,8.13411694,188.78,188.73,0.71]
[1753668743519,7.41411694,188.78,188.74,0.71]
[1753668743850,0.53078556,188.79,188.75,7.41411694]
[1753668744012,26.53078556,188.79,188.75,8.12411694]
[1753668744927,26.53078556,188.79,188.75,13.42198699]
[1753668745239,27.22078556,188.79,188.75,12.71198699]
[1753668745427,27.22078556,188.79,188.75,5.29787005]
[1753668746441,26.69,188.79,188.75,5.97787005]
[1753668746842,26.69,188.79,188.75,13.39198699]
[1753668747340,26.0,188.8,188.78,7.41411694]
[1753668747512,26.69,188.8,188.76,7.69844008]
[1753668748052,1.22078556,188.79,188.75,5.29787005]
[1753668748256,0.69,188.78,188.75,5.29787005]
[1753668749156,0.69,188.77,188.74,5.29827815]
[1753668749823,8.6349025,188.79,188.74,13.39239509]
[1753668750129,1.22078556,188.79,188.74,13.45239509]
[1753668750728,26.56078556,188.8,188.75,8.09411694]
[1753668750946,27.25078556,188.8,188.75,8.09411694]
[1753668751253,27.25078556,188.8,188.76,5.29773257]
[1753668751424,0.03,188.8,188.78,7.41411694]
[1753668751743,0.03,188.8,188.79,8.09411694]
[1753668753126,0.03,188.8,188.79,13.39100766]
[1753668753332,0.03,188.8,188.79,13.6753308]
[1753668753784,0.03,188.8,188.79,14.20501987]
[1753668754457,0.03,188.8,188.79,13.6753308]
[1753668754656,0.03,188.8,188.79,5.29689072]
[1753668754949,0.03,188.8,188.78,5.2970907]
[1753668755553,0.72,188.8,188.77,37.54]
[1753668756054,0.03,188.8,188.77,37.54]
[1753668756264,0.03,188.8,188.74,0.06]
[1753668756265,0.69,188.79,188.74,0.06]
[1753668756545,0.69,188.78,188.74,7.47411694]
[1753668757058,0.69,188.78,188.74,12.77239383]
[1753668758053,0.69,188.78,188.74,5.35827689]
[1753668758235,0.69,188.78,188.74,12.77239383]
[1753668758966,0.03,188.8,188.74,13.45239383]
[1753668759148,0.03,188.8,188.75,8.09411694]
[1753668759546,0.03,188.8,188.75,7.41411694]
[1753668759858,0.72,188.8,188.76,0.68]
[1753668760366,0.03,188.8,188.77,5.29745192]
[1753668760548,0.03,188.8,188.77,5.97745192]
[1753668760853,0.03,188.8,188.77,5.29745192]
[1753668761947,0.03,188.8,188.77,5.97745192]
[1753668763651,0.03,188.8,188.77,5.29745192]
[1753668763941,0.03,188.8,188.77,5.97745192]
[1753668764742,0.03,188.8,188.77,5.29745192]
[1753668766139,0.03,188.8,188.78,0.68]
[1753668766335,0.03,188.84,188.8,0.28432314]
[1753668766540,0.03,188.84,188.83,4.83449655]
[1753668766738,0.03,188.84,188.83,6.04407341]
[1753668767165,0.03,188.84,188.83,22.82875738]
[1753668768166,0.03,188.84,188.83,28.12452606]
[1753668768863,0.03,188.84,188.83,68.57982296]
[1753668780180,1e-08,188.84,188.83,68.57982296]
[1753668780875,0.03,188.88,188.87,16.78468397]
[1753668781204,0.03,188.88,188.87,75.18405955]
[1753668781388,0.03,188.88,188.87,75.90405955]
[1753668782603,0.03,188.89,188.88,7.68979345]
[1753668782779,0.03,188.89,188.88,8.40979345]
[1753668783099,0.03,188.89,188.88,13.70416024]
[1753668786107,1e-08,188.89,188.88,13.70416024]
[1753668788580,1e-08,188.89,188.88,30.48884421]
[1753668789305,1e-08,188.89,188.88,50.1198371]
[1753668789511,1e-08,188.89,188.88,50.26199867]
[1753668789681,1e-08,188.89,188.88,50.40416024]
[1753668790283,0.71000001,188.89,188.88,50.26199867]
[1753668790508,0.71000001,188.89,188.88,50.1198371]
[1753668790816,0.71000001,188.89,188.88,47.39978703]
[1753668791107,0.71000001,188.89,188.88,47.5419486]
[1753668791609,1e-08,188.89,188.88,47.5419486]
[1753668794015,0.71000001,188.89,188.88,47.5419486]
[1753668794912,0.71000001,188.89,188.88,42.99868993]
[1753668795215,0.71000001,188.89,188.88,47.5419486]
[1753668796213,0.71000001,188.89,188.88,42.99868993]
[1753668796411,0.71000001,188.89,188.88,47.5419486]
[1753668797092,0.71000001,188.89,188.84,26.0]
[1753668797290,0.71000001,188.89,188.85,37.4]
[1753668797707,0.71000001,188.89,188.85,47.2384665]
[1753668797899,0.71000001,188.89,188.86,0.28432314]
[1753668798109,0.71000001,188.89,188.87,37.4]
[1753668798292,0.71000001,188.89,188.88,4.82758181]
[1753668799316,0.71000001,188.89,188.88,10.1219486]
[1753668801218,0.71000001,188.89,188.87,47.23782619]
[1753668802327,0.71000001,188.89,188.87,37.4]
[1753668803312,0.71000001,188.89,188.87,42.69460275]
[1753668804012,1e-08,188.91,188.88,0.28432314]
[1753668804350,1e-08,188.93,188.92,0.28432314]
[1753668804498,0.71,189.02,188.96,26.0]
[1753668804701,0.71,189.02,188.98,0.28432314]
[1753668805637,0.71,189.02,188.98,4.82758181]
[1753668806229,0.71,189.02,188.98,10.11914705]
[1753668806594,1.6551,189.03,188.98,10.11914705]
[1753668806918,2.3251,189.03,188.98,10.11914705]
[1753668807247,1e-08,188.99,188.98,32.12708969]
[1753668807528,1.6551,189.08,188.98,32.12708969]
[1753668807529,0.67,189.06,188.99,0.28432314]
[1753668807739,0.67,189.06,189.05,4.54325867]
[1753668808041,0.67,189.06,189.05,42.62325867]
[1753668808226,0.67,189.06,189.05,38.08]
[1753668808402,0.67,189.06,189.02,4.54325867]
[1753668808603,0.67,189.06,189.03,38.06]
[1753668809918,4.54325867,189.05,189.03,38.06]
[1753668810156,4.54325867,189.05,189.0,4.54325867]
[1753668810157,0.67,189.04,189.01,38.04]
[1753668813351,26.0,189.01,188.92,13.91297808]
[1753668813649,2.192,189.0,188.95,4.54325867]
[1753668813876,0.67,188.99,188.96,38.02]
[1753668814230,5.21325867,188.99,188.96,38.02]
[1753668814432,0.67,188.98,188.96,38.02]
[1753668814643,0.67,188.98,188.94,42.56325867]
[1753668815030,0.67,188.98,188.94,38.02]
[1753668815224,0.67,188.98,188.94,42.56325867]